fUSD/lending_fUSD_20240811
["ID","MTS","AMOUNT","RATE_DAILY","PERIOD"]
[334619160,1723351843914,-14912.8381664,0.0001489,3]
[334619162,1723351843928,-552.35201602,0.0001489,3]
[334619165,1723351843949,-2712.68117034,0.0001489,3]
[334619325,1723352014833,760.0,0.00025,60]
[334619326,1723352372354,550.0,0.0001,2]
[334619340,1723352823087,6713.9331,0.00010979,2]
[334619354,1723353032350,-300.0,0.00011179,2]
[334619373,1723353038339,-1701.47708964,0.00011179,2]
[334619374,1723353038398,-708.18517936,0.00011179,2]
[334619375,1723353038623,-870.0340065,0.00011179,2]
[334619376,1723353038635,-11905.5277245,0.00011179,2]
[334619377,1723353038646,-155.0,0.00011525,2]
[334619378,1723353038656,-144.2722755,0.00011576,2]
[334619496,1723353040136,-518.4577245,0.00011576,2]
[334619498,1723353040146,-1263.01629652,0.0001185,2]
[334619500,1723353040157,-600.0,0.00012,2]
[334619502,1723353040167,-250.0,0.00012823,2]
[334619504,1723353040176,-1252.9674249,0.00012852,2]
[334619506,1723353040194,-1489.433276,0.00012852,2]
[334619508,1723353040206,-730.07124766,0.00012852,2]
[334619513,1723353040252,-731.17635156,0.00012852,2]
[334619515,1723353040263,-1247.19195163,0.00012852,2]
[334619517,1723353040275,-7231.78990982,0.00012852,2]
[334619521,1723353040311,-7429.85952086,0.00012852,2]
[334619523,1723353040323,-574.03358918,0.00012852,2]
[334619525,1723353040334,-495.00075906,0.00012852,2]
[334619540,1723353040480,-2718.47596933,0.00012852,2]
[334619542,1723353040491,-619.94,0.0001294,2]
[334619543,1723353040500,-558.15,0.00012959,2]
[334619544,1723353040510,-150.0,0.00012969,2]
[334619545,1723353040520,-223.76,0.00012969,2]
[334619546,1723353040529,-150.71,0.00012976,2]
[334619547,1723353040539,-266.12,0.00013003,2]
[334619548,1723353040550,-2000.0,0.00013024,2]
[334619549,1723353040559,-2285.39,0.00013025,2]
[334619550,1723353040570,-250.0,0.00013042,2]
[334619551,1723353040579,-173.2,0.00013244,2]
[334619552,1723353040590,-528.42,0.00013274,2]
[334619553,1723353040599,-230.65943462,0.00013303,2]
[334619554,1723353040609,-155.0,0.00013489,2]
[334619555,1723353040619,-255.17151718,0.00013561,2]
[334619556,1723353040629,-441.85,0.00013627,2]
[334619557,1723353040638,-150.0,0.00013698,2]
[334619558,1723353040647,-200.0,0.00013699,2]
[334619559,1723353040657,-2751.0,0.00013699,2]
[334619560,1723353040666,-662.73,0.0001384,2]
[334619561,1723353040676,-1041.8962905,0.00013896,2]
[334619562,1723353040685,-165.31,0.00013973,2]
[334619563,1723353040695,-155.69,0.00013973,2]
[334619564,1723353040705,-179.42836704,0.00013986,2]
[334619565,1723353040718,-381.27187679,0.00013989,2]
[334619567,1723353040727,-1396.5698571,0.00013996,2]
[334619568,1723353040740,-547.52749393,0.00013996,2]
[334619571,1723353040757,-395.48039178,0.00013996,2]
[334619605,1723353041888,-315.61031216,0.00013996,2]
[334619607,1723353043139,-301.616,0.00013996,2]
[334619637,1723353044118,-822.33658662,0.00013996,2]
[334619638,1723353044129,-1220.85935841,0.00013996,2]
[334619640,1723353044139,-650.0,0.00014,2]
[334619642,1723353044148,-187.35,0.00014005,2]
[334619643,1723353044157,-420.97,0.00014466,2]
[334619644,1723353044167,-850.26,0.00014466,2]
[334619645,1723353044177,-420.97,0.00014466,2]
[334619646,1723353044186,-835.26,0.00014466,2]
[334619647,1723353044196,-420.97,0.00014466,2]
[334619648,1723353044205,-420.97,0.00014466,2]
[334619649,1723353044214,-1661.7,0.00014466,2]
[334619650,1723353044224,-558.15,0.00014579,2]
[334619651,1723353044233,-150.71,0.00014598,2]
[334619652,1723353044243,-2500.0,0.000146,2]
[334619653,1723353044253,-32137.83,0.00014667,2]
[334619654,1723353044262,-420.30226764,0.00014671,2]
[334619655,1723353044272,-29031.6429579,0.0001469,3]
[334619656,1723353044282,-326.81458476,0.0001469,2]
[334619657,1723353044291,-500.0,0.00014699,2]
[334619658,1723353044302,-500.0,0.00014699,2]
[334619659,1723353044312,-610.43172207,0.00014699,2]
[334619660,1723353044321,-500.0,0.00014699,2]
[334619661,1723353044330,-500.0,0.00014699,2]
[334619662,1723353044340,-500.0,0.00014699,2]
[334619663,1723353044350,-214.93791608,0.00014699,2]
[334619664,1723353044360,-496.83065335,0.00014699,2]
[334619665,1723353044369,-621.77130524,0.00014699,2]
[334619666,1723353044378,-500.0,0.00014699,2]
[334619667,1723353044388,-500.0,0.00014699,2]
[334619668,1723353044397,-245000.0,0.000147,2]
[334619669,1723353044406,-3000.0,0.0001474,2]
[334619670,1723353044416,-256.3785692,0.0001478,2]
[334619671,1723353044425,-14515.8214789,0.0001478,3]
[334619672,1723353044435,-59258.44850391,0.0001479,3]
[334619673,1723353044446,-27836.48036969,0.0001479,3]
[334619674,1723353044456,-534.2648,0.0001479,2]
[334619675,1723353044465,-41122.6335,0.0001479,2]
[334619676,1723353044475,-19120.1712174,0.000148,2]
[334619677,1723353044486,-13117.4593826,0.000148,2]
[334619678,1723353044495,-29295.3468,0.000148,2]
[334619679,1723353044505,-65749.66808853,0.000148,2]
[334619680,1723353044516,-3004.22826377,0.000148,2]
[334619681,1723353044528,-1268.49759141,0.000148,2]
[334619682,1723353044539,-840.64392545,0.000148,2]
[334619683,1723353046360,-411.5459704,0.0001467,2]
[334619684,1723353046370,-307.5525176,0.000148,2]
[334619721,1723354178170,550.0,0.0001,2]
[334619730,1723354232307,-763.46,0.00011323,2]
[334619732,1723354232319,-205.86173565,0.00012,2]
[334619733,1723354232334,-394.13826435,0.00012,2]
[334619734,1723354232345,-1113.71,0.00013074,2]
[334619735,1723354232358,-2270.95,0.00013076,2]
[334619736,1723354232367,-50000.0,0.00013076,2]
[334619737,1723354232378,-250.0,0.00013139,2]
[334619738,1723354232388,-173.2,0.00013173,2]
[334619739,1723354232400,-2249.6,0.00013241,2]
[334619740,1723354232410,-2000.0,0.00013242,2]
[334619741,1723354232419,-187.35,0.00013344,2]
[334619742,1723354232431,-250.0,0.00013417,2]
[334619743,1723354232446,-334.89,0.0001347,2]
[334619744,1723354232456,-23900.0,0.00013474,2]
[334619745,1723354232465,-834.76,0.00013574,2]
[334619746,1723354232475,-763.46,0.00013587,2]
[334619747,1723354232485,-200.0,0.00013699,2]
[334619748,1723354232494,-2751.0,0.00013699,2]
[334619749,1723354232507,-159.69,0.00013788,2]
[334619750,1723354232517,-153.13,0.00013973,2]
[334619751,1723354232526,-527.08,0.00013973,2]
[334619752,1723354232535,-204.1,0.00013973,2]
[334619753,1723354232544,-665.11,0.00014237,2]
[334619754,1723354232553,-500.0,0.00014261,2]
[334619755,1723354232562,-5000.0,0.00014261,2]
[334619756,1723354232571,-547.78190811,0.00014283,2]
[334619757,1723354232581,-251.39277312,0.00014283,2]
[334619758,1723354232590,-1937.0,0.000143,2]
[334619759,1723354232599,-363.23,0.00014329,2]
[334619760,1723354232609,-150.0,0.00014429,2]
[334619761,1723354232619,-379.88583814,0.00014451,2]
[334619762,1723354232628,-224.3949416,0.00014451,2]
[334619763,1723354232637,-394.8159999,0.00014451,2]
[334619764,1723354232646,-2976.1338598,0.00014499,2]
[334619765,1723354232663,-162.48680493,0.00014499,2]
[334619766,1723354232672,-156.83336905,0.00014579,2]
[334619767,1723354232681,-211.71844896,0.00014579,2]
[334619768,1723354232690,-420.30226764,0.00014588,2]
[334619769,1723354232699,-20473.0967389,0.0001459,3]
[334619770,1723354232770,-5180.24440452,0.0001459,3]
[334619788,1723354238522,-5406.64754168,0.0001459,3]
[334619789,1723354238534,-440.81040362,0.0001459,3]
[334619790,1723354238544,-3175.40155286,0.0001459,3]
[334619791,1723354238708,-8986.64346102,0.0001459,3]
[334619792,1723354238718,-508.73492996,0.00014599,2]
[334619793,1723354238726,-11817.6927385,0.000146,2]
[334619986,1723354244716,-3089.06368486,0.000119,2]
[334619987,1723354244725,-27334.1543615,0.000146,2]
[334619988,1723354244735,-58190.33184073,0.000146,2]
[334619998,1723354246433,-297.4607519,0.00014579,2]
[334619999,1723354246443,-1028.8892481,0.000146,2]
[334620047,1723355431454,-4633.5955273,0.00011005,2]
[334620049,1723355431464,-368.46192346,0.00011105,2]
[334620052,1723355431481,-1252.10805056,0.00011105,2]
[334620054,1723355431493,-547.78190811,0.00011105,2]
[334620055,1723355431503,-300.0,0.00011122,2]
[334620056,1723355431512,-861.6,0.00011349,2]
[334620057,1723355431523,-1252.64297218,0.00012121,2]
[334620058,1723355431715,-3747.35702782,0.00012121,2]
[334620059,1723355431726,-420.0,0.0001222,2]
[334620060,1723355431738,-250.0,0.00013184,2]
[334620061,1723355431748,-4917.78,0.00013201,2]
[334620062,1723355431758,-1000.0,0.00013236,2]
[334620063,1723355431767,-1699.6,0.00013243,2]
[334620064,1723355431776,-150.0,0.00013288,2]
[334620065,1723355431786,-23900.0,0.00013289,2]
[334620066,1723355431795,-150.0,0.00013298,2]
[334620067,1723355431804,-4648.74968307,0.00013299,2]
[334620068,1723355431819,-689.30241408,0.00013299,2]
[334620069,1723355431830,-650.40807414,0.00013299,2]
[334620070,1723355431841,-653.04376498,0.00013299,2]
[334620071,1723355431853,-8471.25606373,0.00013299,2]
[334620072,1723355431863,-2575.21,0.00013309,2]
[334620073,1723355431872,-250.0,0.00013336,2]
[334620074,1723355431882,-159.7,0.00013356,2]
[334620075,1723355431891,-587.0,0.00013427,2]
[334620076,1723355431901,-861.6,0.00013613,2]
[334620078,1723355431911,-2751.0,0.00013699,2]
[334620079,1723355431920,-200.0,0.00013699,2]
[334620080,1723355431930,-419.34522457,0.0001372,2]
[334620082,1723355431940,-155.69,0.00013973,2]
[334620085,1723355431949,-2385.9620191,0.00013979,2]
[334620088,1723355431959,-366.5755236,0.00014105,2]
[334620091,1723355431968,-666.05,0.00014192,2]
[334620095,1723355431978,-666.05,0.00014196,2]
[334620098,1723355431987,-666.05,0.000142,2]
[334620100,1723355431996,-666.05,0.00014204,2]
[334620102,1723355432006,-666.05,0.00014207,2]
[334620103,1723355432015,-666.05,0.00014211,2]
[334620104,1723355432025,-666.05,0.00014215,2]
[334620105,1723355432034,-666.05,0.00014219,2]
[334620106,1723355432045,-666.05,0.00014222,2]
[334620107,1723355432054,-666.05,0.00014226,2]
[334620108,1723355432065,-666.05,0.0001423,2]
[334620109,1723355432077,-666.05,0.00014233,2]
[334620110,1723355432087,-666.05,0.00014237,2]
[334620111,1723355432097,-666.05,0.00014241,2]
[334620112,1723355432107,-666.05,0.00014245,2]
[334620113,1723355432117,-666.05,0.00014248,2]
[334620114,1723355432126,-666.05,0.00014252,2]
[334620115,1723355432135,-666.05,0.00014256,2]
[334620116,1723355432145,-666.05,0.0001426,2]
[334620117,1723355432154,-666.05,0.00014263,2]
[334620118,1723355432164,-8535.80532064,0.00014275,2]
[334620119,1723355432173,-420.30226764,0.00014328,2]
[334620120,1723355432183,-255.0,0.00014415,2]
[334620121,1723355432193,-204.79908197,0.0001443,2]
[334620122,1723355432203,-12825.74128476,0.00014451,2]
[334620123,1723355432213,-155.0,0.00014579,2]
[334620124,1723355432222,-155.0,0.000146,2]
[334620125,1723355432232,-537.59289594,0.000146,2]
[334620126,1723355432242,-2818.53587,0.000146,2]
[334620127,1723355432251,-159.83,0.00014616,2]
[334620128,1723355432261,-2824.75859823,0.0001466,2]
[334620129,1723355432271,-3314.5799,0.0001466,2]
[334620130,1723355432280,-6658.409096,0.000147,2]
[334620131,1723355432290,-823.0,0.00014753,2]
[334620132,1723355432300,-534.2648,0.0001476,2]
[334620133,1723355432309,-41122.6335,0.0001476,2]
[334620134,1723355432319,-1000.0,0.0001476,2]
[334620135,1723355432331,-150.0,0.0001477,2]
[334620136,1723355432341,-326.81458476,0.0001477,2]
[334620137,1723355432351,-367.83900343,0.00014789,2]
[334620138,1723355432360,-2111.63219542,0.00014789,2]
[334620139,1723355432370,-2000.0,0.000148,2]
[334620140,1723355432380,-200.0,0.000148,2]
[334620141,1723355432390,-188.72,0.00014828,2]
[334620142,1723355432400,-53242.742279,0.0001486,3]
[334620143,1723355432413,-377.277724,0.0001486,3]
[334620144,1723355432429,-360.35116936,0.0001486,3]
[334620145,1723355432445,-443.77757933,0.0001486,3]
[334620146,1723355437564,-2421.26449464,0.0001486,3]
[334620147,1723355437673,-3998.24190485,0.0001486,3]
[334620148,1723355437685,-289.64531637,0.0001486,3]
[334620149,1723355437861,-485.28526725,0.0001486,3]
[334620150,1723355437872,-335.76750053,0.0001486,3]
[334620305,1723355439659,-863.3110572,0.0001486,3]
[334620307,1723355439670,-16619.30869519,0.0001486,3]
[334620337,1723355442157,-265.91000001,0.0001486,3]
[334620338,1723355442168,-610.430676,0.0001486,3]
[334620339,1723355442179,-740.07,0.0001486,3]
[334620346,1723355442573,-2365.81996177,0.0001486,3]
[334620418,1723355443509,-88345.3731745,0.0001486,3]
[334620419,1723355443518,-268.17671259,0.00014867,2]
[334620565,1723355445757,-150.01,0.00014827,2]
[334620566,1723355445767,-1186.20180422,0.00014827,2]
[334620567,1723355445863,-1768.86172195,0.00014827,2]
[334620568,1723355445873,-3742.41977805,0.00014867,2]
[334620569,1723355445975,-647.81312261,0.00014867,2]
[334620570,1723355445986,-568.41839759,0.00014868,3]
[334620571,1723355446092,-1752.42752178,0.00014868,3]
[334620647,1723355670734,160.83444948,0.00025,60]
[334620651,1723355981988,550.0,0.0001,2]
[334620667,1723356293200,1050.42686795,0.0001,2]
[334620668,1723356303246,450.33508611,0.0001,2]
[334620669,1723356314520,-612.0,0.00011105,2]
[334620670,1723356314543,-829.69,0.00011106,2]
[334620671,1723356314566,-493.19905156,0.00011525,2]
[334620672,1723356314589,-344.24144298,0.00011896,2]
[334620673,1723356314612,-155.0,0.00011959,2]
[334620674,1723356314640,-155.0,0.00011959,2]
[334620675,1723356314665,-600.0,0.00012,2]
[334620676,1723356314687,-413.73293481,0.00012121,2]
[334620677,1723356314711,-182.11568566,0.00012121,2]
[334620678,1723356314735,-170.46315776,0.00012121,2]
[334620679,1723356314756,-155.0869345,0.00012121,2]
[334620680,1723356314780,-162.9540089,0.00012121,2]
[334620681,1723356314806,-327.06259824,0.00012121,2]
[334620682,1723356314831,-800.0,0.00012825,2]
[334620683,1723356314855,-5035.57,0.00012826,2]
[334620684,1723356314881,-166.58,0.00012882,2]
[334620685,1723356324307,-1344.28,0.00013129,2]
[334620686,1723356324335,-23900.0,0.00013236,2]
[334620687,1723356324358,-775.7,0.0001325,2]
[334620688,1723356324381,-2385.9620191,0.00013297,2]
[334620689,1723356324405,-250.0,0.00013334,2]
[334620690,1723356324426,-267.64,0.00013334,2]
[334620691,1723356324448,-250.0,0.00013362,2]
[334620692,1723356324472,-829.69,0.0001337,2]
[334620693,1723356324496,-159.83,0.00013489,2]
[334620694,1723356324520,-169.84,0.00013555,2]
[334620695,1723356324544,-169.84,0.00013589,2]
[334620696,1723356324566,-499.99,0.00013589,2]
[334620697,1723356324590,-169.84,0.00013623,2]
[334620698,1723356324613,-200.0,0.00013659,2]
[334620699,1723356324634,-1821.06,0.00013699,2]
[334620700,1723356324655,-200.0,0.00013699,2]
[334620701,1723356324679,-11411.1285,0.00013799,2]
[334620702,1723356324700,-620.0,0.00013889,2]
[334620703,1723356324723,-150.0,0.00013895,2]
[334620704,1723356324744,-7302.4785,0.00013896,2]
[334620705,1723356324765,-1000.0,0.00013896,2]
[334620706,1723356324786,-1000.0,0.00013896,2]
[334620707,1723356324810,-500.0,0.00013898,2]
[334620708,1723356324833,-175.62831447,0.00013898,2]
[334620709,1723356324855,-500.0,0.00013898,2]
[334620710,1723356324880,-405.42454765,0.00013898,2]
[334620711,1723356324901,-177.71,0.00013973,2]
[334620712,1723356324923,-153.13,0.00013973,2]
[334620713,1723356324946,-245000.0,0.00013986,2]
[334620714,1723356324967,-1000.0,0.00013996,2]
[334620715,1723356324989,-347.66347305,0.00013999,2]
[334620716,1723356325010,-916.7332183,0.00013999,2]
[334620717,1723356325032,-171.0,0.00014026,2]
[334620718,1723356325054,-13360.3880733,0.00014251,3]
[334620719,1723356325081,-176.31,0.00014332,2]
[334620720,1723356325104,-800.0,0.00014429,2]
[334620721,1723356325127,-13360.3880733,0.00014441,3]
[334620722,1723356325149,-12855.73389496,0.00014451,2]
[334620723,1723356325170,-835.26,0.00014466,2]
[334620724,1723356325192,-835.26,0.00014466,2]
[334620725,1723356325213,-403.30784256,0.00014519,2]
[334620726,1723356325235,-420.30226764,0.00014529,2]
[334620727,1723356325256,-394.9792,0.00014656,2]
[334620728,1723356325278,-5647.5896,0.0001466,2]
[334620729,1723356325300,-13360.3880733,0.00014746,3]
[334620730,1723356325322,-4170.60595762,0.00014753,2]
[334620731,1723356325349,-66801.9403667,0.00014756,3]
[334620732,1723356325372,-12742.0407,0.00014766,2]
[334620733,1723356325394,-100000.0,0.00014766,2]
[334620734,1723356325416,-500.0,0.0001477,2]
[334620735,1723356325438,-5000.0,0.00014789,2]
[334620736,1723356325463,-26720.7761467,0.00014846,3]
[334620737,1723356325487,-173685.044953,0.0001485,3]
[334620738,1723356325511,-40081.16422,0.0001486,3]
[334620739,1723356325533,-300.02,0.00014866,2]
[334620740,1723356325555,-2955.06352617,0.00014866,2]
[334620741,1723356325582,-1031.76459501,0.00014866,5]
[334620742,1723356325605,-3000.0,0.00014867,2]
[334620743,1723356325794,-85922.9129903,0.0001487,2]
[334620744,1723356325817,-6197.5708974,0.0001487,2]
[334620745,1723356325850,-572.22480389,0.0001487,2]
[334620746,1723356325873,-13804.1240436,0.0001487,2]
[334620747,1723356325899,-246.98322775,0.0001487,2]
[334620748,1723356325921,-589.35044589,0.00014988,2]
[334620749,1723356325943,-5000.0,0.00014988,2]
[334620750,1723356325966,-454.51441887,0.00014999,2]
[334620751,1723356325988,-155.0,0.00015,2]
[334620752,1723356326011,-155.73849284,0.00015,2]
[334620753,1723356326033,-22093.86807285,0.00015,2]
[334620754,1723356326733,286.67423744,0.00014899,2]
[334620755,1723356330887,411.5459704,0.00014741,2]
[334620756,1723356331009,297522.21420499,0.00013889,2]
[334620757,1723356335245,2955.06352617,0.00014999,2]
[334620758,1723356345351,1295.04022642,0.00014999,2]
[334620759,1723356347290,245000.0,0.00013886,2]
[334620760,1723356362266,443.35963486,0.00012121,2]
[334620761,1723356373415,1348.77989,0.00015,2]
[334620762,1723356373461,2385.9620191,0.00012121,2]
[334620763,1723356384990,39151.8471,0.00013886,2]
[334620764,1723356397428,1000.0,0.00013886,2]
[334620765,1723356402500,500.0,0.00013886,2]
[334620766,1723356416208,2500.0,0.00015,2]
[334620767,1723356416795,100000.0,0.00013886,2]
[334620769,1723356438186,155.0,0.00013886,2]
[334620770,1723356446453,1000.0,0.00013886,2]
[334620771,1723356458617,2500.0,0.00013886,2]
[334620772,1723356458970,1123.98324,0.00015,2]
[334620773,1723356498913,22093.86807285,0.00015,2]
[334620774,1723356501736,2083.33333,0.00015,2]
[334620775,1723356506451,210.99013923,0.00014999,2]
[334620776,1723356513285,557.99776162,0.00014988,2]
[334620777,1723356515435,340.97583371,0.00015,4]
[334620778,1723356536231,537.59289594,0.00015,2]
[334620779,1723356544474,936.6527,0.00015,2]
[334620780,1723356549172,155.0,0.00015,2]
[334620781,1723356553848,12495.9485,0.00014911,2]
[334620782,1723356563147,155.0,0.00015,2]
[334620796,1723356587268,1736.11111,0.00015,2]
[334620797,1723356590018,250.0,0.00014911,2]
[334620798,1723356591402,22093.86807285,0.00015,2]
[334620800,1723356606402,340.97583371,0.00015,4]
[334620801,1723356613918,211.71844896,0.00014999,2]
[334620802,1723356619972,4254.2001462,0.00015,2]
[334620803,1723356620435,816.85,0.00014925,2]
[334620804,1723356630031,780.54392,0.00015,2]
[334620829,1723356631667,-1000.0,0.0001501,2]
[334620831,1723356631676,-300.0,0.0001501,2]
[334620833,1723356631685,-0.99,0.0001501,2]
[334620834,1723356631804,-299.01,0.0001501,2]
[334620835,1723356631815,-616.475,0.00015011,2]
[334620836,1723356631828,-2900.0,0.00015011,2]
[334620837,1723356631838,-28487.00708636,0.00015011,2]
[334620838,1723356631857,-1070.57254291,0.00015011,2]
[334620839,1723356631868,-1728.39618865,0.00015011,2]
[334620840,1723356631906,-378.25609224,0.00015011,2]
[334620841,1723356632037,-429.8742519,0.00015011,2]
[334620842,1723356632049,-878.36648687,0.00015011,2]
[334620843,1723356632061,-395.93287863,0.00015011,2]
[334620855,1723356637804,-3000.0,0.00015011,2]
[334620856,1723356637816,-1000.0,0.00015011,2]
[334620857,1723356638018,-22055.32660164,0.00015011,2]
[334620858,1723356638028,-695.0,0.00015049,2]
[334620859,1723356638038,-1500.0,0.00015079,5]
[334620860,1723356638049,-16589.37,0.00015122,2]
[334620861,1723356638058,-1000.0,0.00015122,2]
[334620862,1723356638067,-600.0,0.00015245,2]
[334620863,1723356638077,-403.91642747,0.00015255,2]
[334620864,1723356638087,-616.27456123,0.00015269,2]
[334620865,1723356638096,-200.0,0.00015366,2]
[334620866,1723356638105,-624.33214489,0.00015369,2]
[334620867,1723356638115,-1405.57261627,0.00015393,2]
[334620868,1723356638124,-159.7,0.00015582,2]
[334620869,1723356638133,-5133.0,0.00015626,2]
[334620870,1723356638143,-5841.0,0.00015626,2]
[334620871,1723356638152,-1672.0,0.00015626,2]
[334620872,1723356638162,-21754.0,0.00015626,2]
[334620873,1723356638171,-1204.0,0.00015626,2]
[334620874,1723356638181,-829.69,0.00015634,2]
[334620875,1723356638190,-2233.21503504,0.000157,2]
[334620876,1723356638200,-159.282,0.00015735,2]
[334620877,1723356638209,-190.924,0.00015735,2]
[334620878,1723356638219,-192.0,0.00015735,2]
[334620879,1723356638227,-159.83,0.00015738,2]
[334620880,1723356638237,-151.477,0.00015758,2]
[334620881,1723356638246,-261.308,0.00015761,2]
[334620882,1723356638255,-186.971,0.00015761,2]
[334620883,1723356638265,-150.0,0.00015761,2]
[334620884,1723356638274,-161.894,0.00015761,2]
[334620885,1723356638284,-150.997,0.00015761,2]
[334620886,1723356638293,-710.269,0.00015761,2]
[334620887,1723356638302,-1136.0,0.00015761,2]
[334620888,1723356638311,-810.0,0.00015761,2]
[334620889,1723356638321,-446.0,0.00015761,2]
[334620890,1723356638338,-556.0,0.00015761,2]
[334620891,1723356638348,-551.0,0.00015761,2]
[334620892,1723356638358,-1174.0,0.00015761,2]
[334620893,1723356638367,-2704.553,0.00015761,2]
[334620894,1723356638376,-1006.0,0.000158,2]
[334620895,1723356638386,-2261.51906956,0.000158,2]
[334620896,1723356638395,-167.0,0.00015831,2]
[334620897,1723356638404,-167.0,0.00015831,2]
[334620898,1723356638413,-962.3578253,0.0001587,2]
[334620899,1723356638423,-1443.81933441,0.00015897,2]
[334620900,1723356638432,-535.65,0.00015973,2]
[334620901,1723356638442,-426.33,0.00015973,2]
[334620902,1723356638451,-426.33,0.00015973,2]
[334620903,1723356638461,-426.33,0.00015973,2]
[334620904,1723356638470,-426.33,0.00015973,2]
[334620905,1723356638479,-426.33,0.00015973,2]
[334620906,1723356638489,-426.33,0.00015973,2]
[334620907,1723356638499,-426.33,0.00015973,2]
[334620910,1723356638508,-426.33,0.00015973,2]
[334620913,1723356638518,-426.33,0.00015973,2]
[334620916,1723356638527,-426.33,0.00015973,2]
[334620919,1723356638536,-426.33,0.00015973,2]
[334620922,1723356638545,-426.33,0.00015973,2]
[334620923,1723356638555,-426.33,0.00015973,2]
[334620924,1723356638564,-424.51,0.00015973,2]
[334620926,1723356638573,-5000.0,0.00015999,2]
[334620928,1723356638583,-1000.0,0.00016,2]
[334620930,1723356638592,-302.37,0.00016013,2]
[334620932,1723356638602,-150.0,0.00016013,2]
[334620934,1723356638611,-150.0,0.00016013,2]
[334620936,1723356638620,-150.0,0.00016013,2]
[334620938,1723356638629,-150.0,0.00016013,2]
[334620940,1723356638638,-313.94,0.00016013,2]
[334620942,1723356638647,-800.0,0.00016032,2]
[334620944,1723356638656,-613.51400375,0.0001609,2]
[334620946,1723356638665,-176.31,0.00016124,2]
[334620948,1723356638674,-17434.74942144,0.0001618,2]
[334620950,1723356638683,-85899.5444,0.00016258,2]
[334620952,1723356638693,-1000.0,0.000163,2]
[334620954,1723356638702,-25501.21215973,0.00016325,2]
[334620956,1723356638712,-497.93815757,0.00016358,2]
[334620958,1723356638721,-834.77,0.00016384,2]
[334620960,1723356638730,-155.0,0.00016425,2]
[334620962,1723356638739,-547.78190811,0.00016425,2]
[334620964,1723356638748,-420.0,0.00016427,2]
[334620966,1723356638760,-2385.9620191,0.00016441,2]
[334620968,1723356638769,-155.0,0.00016441,2]
[334620970,1723356638777,-155.0,0.00016441,2]
[334620972,1723356638786,-155.73849284,0.00016441,2]
[334620974,1723356638795,-167.0,0.00016484,2]
[334620976,1723356638805,-745.2683,0.0001651,2]
[334620978,1723356638814,-1764.09435652,0.00016699,2]
[334620980,1723356638823,-500.0,0.000167,2]
[334620982,1723356638833,-3991.18446678,0.0001679,2]
[334620984,1723356638842,-164.14081491,0.00016797,2]
[334620986,1723356638851,-10000.0,0.000168,2]
[334620988,1723356638861,-245000.0,0.000168,2]
[334620990,1723356638870,-616.27456123,0.00016874,2]
[334620992,1723356638879,-493.5352918,0.00016882,2]
[334620994,1723356638888,-3707.20529566,0.00016887,2]
[334620996,1723356638902,-174589.334312,0.0001689,3]
[334620998,1723356638911,-439721.63063336,0.000169,4]
[334621000,1723356638920,-1405.98538711,0.00017004,2]
[334621002,1723356638930,-200.0,0.00017073,2]
[334621004,1723356638940,-167.0,0.00017137,2]
[334621006,1723356638949,-13429.9487932,0.00017268,3]
[334621008,1723356638958,-25501.21215965,0.00017278,2]
[334621010,1723356638970,-800.0,0.00017635,2]
[334621012,1723356638979,-167.0,0.00017791,2]
[334621014,1723356638988,-159.7,0.00017808,2]
[334621016,1723356638997,-13429.9487932,0.00017888,3]
[334621017,1723356639006,-829.69,0.00017898,2]
[334621019,1723356639015,-3900.0,0.000179,6]